bitfinex/quotes_SOLUSD_20240621
["timestamp","ask_amount","ask_price","bid_price","bid_amount"]
[1718999156389,5.9747,133.9,133.85,6.3167]
[1718999156991,12.4367,133.91,133.86,5.9762]
[1718999157835,6.4625,133.91,133.81,16.3929]
[1718999158122,6.4625,133.91,133.79,53.9748]
[1718999158617,5.9757,133.88,133.83,5.9776]
[1718999159300,5.9759,133.87,133.82,5.978]
[1718999160022,6.2994,133.85,133.78,14.9454]
[1718999160191,6.2994,133.85,133.69,22.3228]
[1718999160393,5.98,133.78,133.69,22.3228]
[1718999160720,5.9805,133.77,133.69,37.2826]
[1718999161021,5.9809,133.76,133.7,5.9831]
[1718999161188,5.9816,133.75,133.7,5.9831]
[1718999161390,20.0,133.84,133.71,5.9828]
[1718999161391,5.9807,133.77,133.71,5.9828]
[1718999161609,20.0,133.84,133.71,5.9828]
[1718999161812,5.9807,133.77,133.72,5.9824]
[1718999162023,5.9807,133.77,133.69,14.9599]
[1718999162331,5.9816,133.75,133.69,5.9838]
[1718999162628,5.9809,133.76,133.7,5.9832]
[1718999162802,5.9812,133.76,133.66,22.8034]
[1718999163002,5.9812,133.76,133.7,5.9834]
[1718999163333,5.981,133.76,133.7,5.9832]
[1718999163510,5.9805,133.77,133.71,5.9827]
[1718999163694,16.261,133.78,133.71,5.9827]
[1718999164125,5.9808,133.76,133.71,5.9827]
[1718999164335,5.9808,133.76,133.67,14.962]
[1718999164496,5.9808,133.76,133.7,5.9834]
[1718999164699,16.261,133.78,133.69,14.9598]
[1718999164897,22.2411,133.78,133.72,5.9823]
[1718999165349,16.261,133.78,133.7,0.34]
[1718999165532,5.98,133.78,133.73,5.9818]
[1718999165903,21.2575,133.82,133.74,5.9816]
[1718999165904,5.9796,133.79,133.74,5.9816]
[1718999166212,5.9791,133.8,133.74,5.9815]
[1718999166804,5.9791,133.8,133.74,5.9814]
[1718999167029,21.2575,133.82,133.73,0.17]
[1718999167207,5.9805,133.77,133.72,5.9823]
[1718999167528,5.9809,133.76,133.71,5.9829]
[1718999167731,21.2575,133.82,133.7,0.17]
[1718999167926,20.0,133.81,133.7,14.9587]
[1718999168124,5.9802,133.78,133.73,5.9819]
[1718999168430,5.9797,133.79,133.74,5.9816]
[1718999168827,5.9791,133.8,133.75,5.9811]
[1718999169034,21.2575,133.82,133.73,0.17]
[1718999169231,5.9801,133.78,133.73,5.9819]
[1718999169529,21.2575,133.82,133.67,122.5]
[1718999169836,5.9805,133.77,133.72,5.9826]
[1718999170023,5.9805,133.77,133.69,14.9599]
[1718999170337,5.9805,133.77,133.72,5.9823]
[1718999172517,5.9805,133.77,133.71,6.1526]
[1718999172717,5.9828,133.72,133.63,52.92]
[1718999172925,5.9834,133.71,133.65,5.9853]
[1718999173113,15.9275,133.8,133.65,5.9853]
[1718999173114,5.9838,133.7,133.65,5.9854]
[1718999173314,5.9838,133.7,133.62,36.2175]
[1718999173315,5.9837,133.7,133.62,36.2175]
[1718999173629,6.336,133.72,133.66,5.9853]
[1718999173942,5.9833,133.71,133.66,5.9853]
[1718999174339,5.9832,133.71,133.66,5.9853]
[1718999174539,6.336,133.72,133.69,5.9838]
[1718999174842,5.9817,133.75,133.7,5.9834]
[1718999175061,5.9832,133.71,133.66,5.9851]
[1718999175338,20.0,133.74,133.62,15.1132]
[1718999175525,5.9847,133.68,133.62,15.1132]
[1718999175727,6.4685,133.68,133.6,14.9699]
[1718999175914,5.9856,133.66,133.61,5.9872]
[1718999176117,5.9832,133.71,133.62,14.9672]
[1718999176317,21.9745,133.77,133.68,5.9843]
[1718999176318,5.9823,133.73,133.68,5.9843]
[1718999176516,5.9818,133.74,133.69,5.9839]
[1718999176720,27.85334076,133.77,133.61,132.92]
[1718999176721,5.9823,133.73,133.68,5.984]
[1718999177122,5.9833,133.71,133.62,14.9667]
[1718999177323,5.9833,133.71,133.66,5.9852]
[1718999177525,5.9831,133.71,133.66,5.9851]
[1718999178052,5.9823,133.73,133.68,5.9841]
[1718999178239,5.9819,133.74,133.69,5.9839]
[1718999178737,21.9745,133.77,133.68,0.17]
[1718999178952,260.4,133.88,133.68,0.17]
[1718999178953,27.5849,133.81,133.76,5.9808]
[1718999179243,21.606,133.81,133.68,0.17]
[1718999179954,21.606,133.81,133.68,5.9843]
[1718999180459,0.17,133.8,133.68,5.9843]
[1718999180626,20.17,133.8,133.69,5.9839]
[1718999181039,20.0,133.8,133.68,14.9609]
[1718999181227,20.0,133.8,133.71,5.9828]
[1718999182232,21.606,133.81,133.7,14.9585]
[1718999182541,21.606,133.81,133.71,0.34]
[1718999182717,21.606,133.81,133.75,5.981]
[1718999183121,21.606,133.81,133.74,5.9815]
[1718999183324,21.606,133.81,133.73,0.17]
[1718999183730,21.606,133.81,133.72,0.34]
[1718999183938,6.0926,133.81,133.77,5.9803]
[1718999184949,6.0926,133.81,133.78,5.9798]
[1718999185123,6.1814,133.84,133.78,5.9798]
[1718999185323,6.1814,133.84,133.77,5.9803]
[1718999185736,6.1814,133.84,133.76,5.9808]
[1718999186225,6.1814,133.84,133.77,5.9803]
[1718999186533,6.1814,133.84,133.78,5.9799]
[1718999187032,6.1814,133.84,133.76,5.9806]
[1718999187229,6.1814,133.84,133.75,0.17]
[1718999187430,6.1814,133.84,133.75,0.34]
[1718999187629,6.1814,133.84,133.78,5.9799]
[1718999188327,6.1814,133.84,133.79,5.9794]
[1718999188653,22.3072,133.91,133.82,5.9777]
[1718999188821,20.0,133.9,133.83,5.9777]
[1718999189024,20.0,133.9,133.81,6.1486]
[1718999189343,22.3072,133.91,133.82,5.9781]
[1718999189647,22.3072,133.91,133.84,5.9772]
[1718999190032,22.3072,133.91,133.82,5.9781]
[1718999190233,22.3072,133.91,133.81,0.17]
[1718999190435,22.3072,133.91,133.8,5.9788]
[1718999190636,22.3072,133.91,133.81,6.1486]
[1718999190846,22.3072,133.91,133.81,5.9786]
[1718999191166,22.3072,133.91,133.79,0.34]
[1718999191465,20.0,133.9,133.79,0.34]
[1718999191755,20.0,133.9,133.77,32.92]
[1718999192050,16.6413,133.88,133.72,31.4256]
[1718999192353,20.17,133.87,133.72,31.4256]
[1718999192540,6.5995,133.86,133.71,6.1361]
[1718999192873,6.5995,133.83,133.72,5.9826]
[1718999193061,20.0,133.82,133.71,5.9829]
[1718999193233,20.0,133.82,133.66,29.9262]
[1718999193234,20.0,133.82,133.7,5.9834]
[1718999193434,20.0,133.82,133.69,5.9838]
[1718999193742,20.0,133.82,133.65,20.0]
[1718999193937,0.17,133.81,133.63,154.6476]
[1718999194137,0.17,133.81,133.69,5.9836]
[1718999194442,0.17,133.81,133.65,14.9642]
[1718999195042,0.17,133.81,133.7,5.9834]
[1718999195246,0.17,133.81,133.67,14.962]
[1718999195461,20.0,133.82,133.71,5.9827]
[1718999195655,20.0,133.82,133.7,5.9834]
[1718999195968,0.17,133.81,133.69,5.9838]
[1718999196264,0.17,133.81,133.7,5.9835]
[1718999196557,0.17,133.81,133.69,5.9839]
[1718999196735,0.17,133.81,133.68,5.9842]
[1718999196940,0.17,133.81,133.69,5.9839]
[1718999197151,0.17,133.81,133.67,5.9844]
[1718999197355,16.5713,133.79,133.64,14.9644]
[1718999197556,20.0,133.78,133.66,5.985]
[1718999197732,6.2813,133.77,133.63,32.92]
[1718999197939,6.2813,133.77,133.6,14.969]
[1718999197940,20.0,133.76,133.6,14.969]
[1718999198274,20.0,133.76,133.63,5.9863]
[1718999198565,0.17,133.75,133.64,5.9861]
[1718999198955,0.17,133.75,133.65,5.9857]
[1718999199675,0.17,133.75,133.61,14.9679]
[1718999199864,0.17,133.75,133.64,5.9861]
[1718999200056,21.7147,133.74,133.62,5.987]
[1718999200260,20.0,133.73,133.59,14.971]
[1718999200573,20.0,133.73,133.62,5.987]
[1718999200875,0.17,133.72,133.59,5.9883]
[1718999201057,6.0022,133.71,133.59,5.9883]
[1718999201257,6.0022,133.71,133.58,0.8646059]
[1718999201463,20.17,133.7,133.6,5.9879]
[1718999201658,20.17,133.7,133.58,0.8646059]
[1718999201659,20.17,133.7,133.59,5.988]
[1718999201963,20.17,133.7,133.6,5.9879]
[1718999202560,20.17,133.7,133.59,5.9883]
[1718999202756,20.17,133.7,133.58,0.8646059]
[1718999202966,20.17,133.7,133.58,6.8534059]
[1718999203161,20.17,133.7,133.59,5.9884]
[1718999205354,20.0,133.7,133.59,5.9884]
[1718999205975,20.0,133.7,133.58,1.2046059]
[1718999206161,6.0022,133.71,133.61,5.9875]
[1718999206364,6.0022,133.71,133.59,0.34]
[1718999206365,6.0022,133.71,133.62,6.3271]
[1718999206568,6.0022,133.71,133.62,0.17]
[1718999206762,6.0022,133.71,133.63,0.17]
[1718999206966,6.0022,133.71,133.66,5.9851]
[1718999207167,6.0022,133.71,133.67,0.34]
[1718999207485,6.0022,133.71,133.67,6.3248]
[1718999207869,6.0022,133.71,133.67,0.34]
[1718999208268,6.0022,133.71,133.67,6.3248]
[1718999208462,6.0022,133.71,133.67,0.34]
[1718999208861,6.0022,133.71,133.67,6.3248]
[1718999209077,6.0022,133.71,133.67,0.34]
[1718999209257,6.0022,133.71,133.62,14.9677]
[1718999209581,6.0022,133.71,133.65,5.9855]
[1718999210186,6.0022,133.71,133.62,5.987]
[1718999210391,6.0022,133.71,133.6,32.92]
[1718999211370,6.0022,133.71,133.63,5.9865]
[1718999212273,6.0022,133.71,133.62,0.17]
[1718999212578,6.0022,133.71,133.62,5.9869]
[1718999212892,6.0022,133.71,133.62,5.987]
[1718999213250,6.0022,133.71,133.58,15.8357059]
[1718999213454,6.0022,133.71,133.62,5.9868]
[1718999213654,22.2104,133.74,133.67,5.9845]
[1718999213853,22.2104,133.74,133.65,14.9643]
[1718999214080,22.2104,133.74,133.69,5.9836]
[1718999214461,22.2104,133.74,133.68,5.9842]
[1718999214893,22.2104,133.74,133.69,5.9838]
[1718999215075,22.2104,133.74,133.7,5.9833]
[1718999215274,22.2104,133.74,133.69,5.9838]
[1718999215778,22.2104,133.74,133.7,5.9834]
[1718999217299,22.2104,133.74,133.7,5.9833]
[1718999217694,6.6635,133.74,133.71,5.9829]
[1718999218012,21.8232,133.78,133.72,5.9826]
[1718999218292,21.8232,133.78,133.73,5.9821]
[1718999218700,21.8232,133.78,133.74,5.9817]
[1718999218899,21.8232,133.78,133.73,5.982]
[1718999219081,21.8232,133.78,133.74,5.9816]
[1718999220186,21.8232,133.78,133.73,5.9821]
[1718999220391,21.8232,133.78,133.72,6.3224]
[1718999220698,21.8232,133.78,133.73,5.9821]
[1718999220893,21.8232,133.78,133.74,5.9816]
[1718999221672,21.8232,133.78,133.75,5.9812]
[1718999221877,21.8232,133.78,133.72,0.34]
[1718999222194,6.6484,133.78,133.73,14.9552]
[1718999222505,6.6484,133.78,133.75,5.9811]
[1718999223203,6.6484,133.78,133.71,5.9829]
[1718999223405,6.6484,133.78,133.7,5.9832]
[1718999223575,6.6484,133.78,133.67,32.92]
[1718999223908,16.3579,133.77,133.68,5.9842]
[1718999224412,16.3579,133.77,133.69,5.9839]
[1718999224789,16.3579,133.77,133.68,5.9843]
[1718999225190,16.3579,133.77,133.69,5.9838]
[1718999225680,16.3579,133.77,133.68,5.9842]
[1718999226180,16.3579,133.77,133.69,5.9839]
[1718999227801,16.3579,133.77,133.7,5.9834]
[1718999229004,16.3579,133.77,133.68,6.1543]
[1718999229213,16.3579,133.77,133.69,0.17]
[1718999229374,16.3579,133.77,133.69,6.1539]
[1718999229577,16.3579,133.77,133.7,6.1534]
[1718999229772,16.3579,133.77,133.69,0.17]
[1718999230006,16.3579,133.77,133.7,5.9835]
[1718999230191,16.3579,133.77,133.69,6.1537]
[1718999231003,16.3579,133.77,133.7,5.9834]
[1718999231202,16.3579,133.77,133.69,0.17]
[1718999231498,16.3579,133.77,133.69,6.1539]
[1718999231999,16.3579,133.77,133.7,5.9835]
[1718999232932,16.3579,133.77,133.71,0.17]
[1718999233085,16.3579,133.77,133.69,0.17]
[1718999233505,16.3579,133.77,133.7,5.9834]
[1718999233703,16.3579,133.77,133.68,5.9841]
[1718999233880,16.3579,133.77,133.65,14.9634]
[1718999234086,6.0909,133.76,133.66,5.9851]
[1718999234485,6.0909,133.76,133.67,5.9848]
[1718999234684,6.0909,133.76,133.66,5.9852]
[1718999234881,6.0909,133.76,133.64,14.9647]
[1718999235097,6.0909,133.76,133.67,5.9847]
[1718999235506,6.0909,133.76,133.67,5.9846]
[1718999235806,6.0909,133.76,133.66,5.985]
[1718999235975,6.0909,133.76,133.67,5.9848]
[1718999236398,6.0909,133.76,133.63,47.8856]
[1718999236606,6.0909,133.76,133.66,5.985]
[1718999237109,6.0909,133.76,133.64,0.34]
[1718999237296,6.0909,133.76,133.66,5.985]
[1718999239393,6.0909,133.76,133.67,5.9847]
[1718999239707,6.0909,133.76,133.64,15.3046]
[1718999239904,6.0909,133.76,133.67,5.9847]
[1718999240201,6.0909,133.76,133.66,0.34]
[1718999240427,6.0909,133.76,133.65,5.9856]
[1718999240709,15.4329,133.75,133.65,5.9856]
[1718999240999,6.4995,133.74,133.59,8.96409839]
[1718999241202,6.4995,133.72,133.62,5.9868]
[1718999241578,6.4995,133.72,133.61,5.9875]
[1718999242102,6.427,133.7,133.59,2.31519839]
[1718999242408,6.427,133.7,133.62,5.9871]
[1718999242590,6.427,133.7,133.6,5.9878]
[1718999242789,6.427,133.7,133.62,5.9869]
[1718999242991,6.427,133.7,133.59,2.31519839]
[1718999243191,20.0,133.69,133.59,2.31519839]
[1718999243386,20.0,133.69,133.59,8.30339839]
[1718999243691,27.82131703,133.69,133.59,8.30339839]
[1718999245419,21.6718,133.66,133.59,2.31519839]
[1718999245583,100.0,133.68,133.59,2.31519839]
[1718999245584,15.2142,133.65,133.59,2.31519839]
[1718999245794,26.4576,133.64,133.59,2.31519839]
[1718999249011,6.1634,133.62,133.5,5.991]
[1718999249309,6.1634,133.62,133.45,21.9095]
[1718999249613,20.17,133.61,133.5,5.9922]
[1718999249810,6.1634,133.6,133.46,14.9847]
[1718999250010,15.9429,133.59,133.46,14.9847]
[1718999250195,20.17,133.61,133.44,0.8646059]
[1718999250196,15.9429,133.55,133.44,0.8646059]
[1718999250397,15.9429,133.53,133.44,0.8646059]
[1718999250604,6.5401,133.51,133.44,0.8646059]
[1718999250913,20.0,133.5,133.44,0.8646059]
[1718999251291,6.5401,133.51,133.44,0.8646059]
[1718999251732,13.1071,133.5,133.35,29.9916]
[1718999251897,33.1071,133.5,133.38,5.9977]
[1718999252320,33.1071,133.5,133.32,32.92]
[1718999252321,6.369,133.48,133.32,32.92]
[1718999252627,6.369,133.48,133.38,5.9975]
[1718999252805,6.369,133.48,133.39,5.9973]
[1718999253120,6.369,133.48,133.35,14.9974]
[1718999253121,6.369,133.48,133.37,5.9979]
[1718999253305,22.7249,133.46,133.37,5.9979]
[1718999253507,22.7249,133.46,133.34,5.9996]
[1718999253714,20.17,133.45,133.33,5.9999]
[1718999253903,20.17,133.45,133.32,6.0005]
[1718999254221,20.17,133.45,133.31,0.8646059]
[1718999254222,6.369,133.44,133.31,0.8646059]
[1718999254416,20.17,133.43,133.31,0.8646059]
[1718999255315,260.4,133.4,133.31,0.8646059]
[1718999255527,20.0,133.39,133.31,0.8646059]
[1718999256315,0.17,133.38,133.31,0.8646059]
[1718999257194,20.0,133.39,133.31,6.8652059]
[1718999257422,22.7249,133.41,133.31,6.8652059]
[1718999257623,22.7249,133.41,133.31,15.8666059]
[1718999257928,22.7249,133.41,133.32,6.0005]
[1718999258593,22.7249,133.41,133.31,1.0346059]
[1718999258798,22.7249,133.41,133.33,6.0]
[1718999259199,22.7249,133.41,133.32,6.0005]
[1718999260108,22.7249,133.41,133.31,0.8646059]
[1718999260423,20.0,133.4,133.33,6.0]
[1718999260605,22.7249,133.41,133.33,6.0]
[1718999260807,22.7249,133.41,133.31,0.8646059]
[1718999261219,22.7249,133.41,133.35,5.9989]
[1718999261528,6.3976,133.45,133.37,14.9958]
[1718999261828,6.3976,133.45,133.4,5.9969]
[1718999262032,6.3976,133.45,133.41,5.9964]
[1718999263426,22.409,133.5,133.42,6.166]
[1718999263605,22.409,133.5,133.4,6.1667]
[1718999264426,22.409,133.5,133.41,5.9965]
[1718999265820,22.409,133.5,133.42,6.166]
[1718999266036,22.409,133.5,133.42,5.996]
[1718999266736,22.409,133.5,133.43,6.3355]
[1718999266903,22.409,133.5,133.43,6.1655]
[1718999267308,22.409,133.5,133.44,0.17]
[1718999268727,22.409,133.5,133.43,0.34]
[1718999268930,22.409,133.5,133.43,6.3356]
[1718999269229,22.409,133.5,133.43,0.34]
[1718999269723,22.409,133.5,133.43,0.17]
[1718999269914,22.409,133.5,133.42,0.17]
[1718999270118,22.409,133.5,133.42,0.34]
[1718999270312,0.17,133.49,133.37,32.92]
[1718999270509,0.17,133.49,133.34,36.8506]
[1718999270709,20.17,133.49,133.37,5.9982]
[1718999270908,20.17,133.49,133.34,15.5983]
[1718999271231,20.17,133.49,133.37,5.9981]
[1718999271523,20.17,133.49,133.38,5.9976]
[1718999271722,20.17,133.49,133.37,5.9981]
[1718999272303,20.17,133.49,133.39,5.9974]
[1718999273912,20.0,133.49,133.4,6.1669]
[1718999275151,22.409,133.5,133.41,6.1664]
[1718999275445,22.409,133.5,133.42,0.17]
[1718999276438,22.409,133.5,133.42,6.1659]
[1718999276638,22.409,133.5,133.43,0.17]
[1718999277520,22.409,133.5,133.43,6.1654]
[1718999277724,22.409,133.5,133.44,0.17]
[1718999278631,22.409,133.5,133.43,0.34]
[1718999278846,22.409,133.5,133.43,6.3356]
[1718999280354,22.409,133.5,133.42,5.996]
[1718999280539,22.409,133.5,133.38,34.9946]
[1718999280739,22.409,133.5,133.41,5.9962]
[1718999281046,22.409,133.5,133.4,5.9968]
[1718999281629,22.409,133.5,133.37,32.92]
[1718999281833,22.409,133.5,133.4,5.9969]
[1718999282039,22.409,133.5,133.37,32.92]
[1718999282349,22.409,133.5,133.38,20.0]
[1718999282652,22.409,133.5,133.42,14.9902]
[1718999282834,22.409,133.5,133.44,5.9948]
[1718999283033,22.409,133.5,133.43,5.9954]
[1718999283227,22.409,133.5,133.44,0.17]
[1718999284033,22.409,133.5,133.44,6.1651]
[1718999284234,22.409,133.5,133.45,5.9946]
[1718999284446,22.409,133.5,133.46,5.9941]
[1718999284940,22.409,133.5,133.45,5.9945]
[1718999285148,22.409,133.5,133.46,0.17]
[1718999285658,22.409,133.5,133.46,6.1642]
[1718999286352,22.409,133.5,133.47,5.9937]
[1718999286757,22.409,133.5,133.46,6.1641]
[1718999287139,22.409,133.5,133.46,0.17]
[1718999287462,22.409,133.5,133.46,6.1643]
[1718999288142,22.409,133.5,133.46,0.17]
[1718999288341,22.409,133.5,133.42,5.9958]
[1718999288544,22.409,133.5,133.42,5.996]
[1718999288841,22.409,133.5,133.44,5.9951]
[1718999289348,22.409,133.5,133.42,14.99]
[1718999289868,22.409,133.5,133.47,5.9938]
[1718999290467,22.409,133.5,133.46,5.9941]
[1718999290759,16.3298,133.54,133.45,0.17]
[1718999291056,6.54,133.53,133.47,5.9935]
[1718999291434,6.54,133.53,133.46,5.9942]
[1718999291632,6.54,133.53,133.47,0.17]
[1718999291855,6.54,133.53,133.46,6.164]
[1718999292038,6.54,133.53,133.47,0.17]
[1718999293170,6.54,133.53,133.41,32.92]
[1718999293350,6.54,133.53,133.44,5.9949]
[1718999293663,6.54,133.53,133.45,5.9947]
[1718999293958,6.54,133.53,133.46,5.9938]
[1718999294265,6.54,133.53,133.44,32.92]
[1718999294432,6.54,133.53,133.46,14.9857]
[1718999294637,6.54,133.53,133.49,5.9926]
[1718999295274,6.54,133.53,133.46,5.9942]
[1718999295565,6.54,133.53,133.46,5.9939]
[1718999295744,6.54,133.53,133.44,5.9926]
[1718999296068,6.54,133.53,133.44,5.9951]
[1718999297368,6.54,133.53,133.43,6.1654]
[1718999297551,6.54,133.53,133.44,5.9951]
[1718999297862,6.54,133.53,133.45,5.9946]
[1718999298036,6.54,133.53,133.46,5.9943]
[1718999298232,6.54,133.53,133.43,6.1656]
[1718999298435,6.54,133.53,133.44,5.995]
[1718999298749,6.54,133.53,133.45,6.1647]
[1718999299061,6.54,133.53,133.46,5.9941]
[1718999299363,6.54,133.53,133.46,5.994]
[1718999299563,6.54,133.53,133.45,6.1646]
[1718999299942,6.54,133.53,133.46,6.1642]
[1718999300143,6.54,133.53,133.46,5.9942]
[1718999300493,6.54,133.53,133.45,0.17]
[1718999300849,6.54,133.53,133.44,0.34]
[1718999301539,6.54,133.53,133.43,5.9954]
[1718999301759,21.8115,133.51,133.41,5.9964]
[1718999301938,21.8115,133.51,133.4,5.9968]
[1718999302139,21.8115,133.51,133.37,21.0726]
[1718999302140,21.8115,133.51,133.41,5.9965]
[1718999302445,21.8115,133.51,133.4,5.9968]
[1718999302648,20.0,133.5,133.4,5.9968]
[1718999302852,20.0,133.5,133.41,5.9965]
[1718999303165,20.0,133.5,133.4,5.9968]
[1718999304352,20.0,133.5,133.41,6.1665]
[1718999305341,20.0,133.5,133.41,0.17]
[1718999306363,20.0,133.5,133.41,6.1665]
[1718999306570,20.0,133.5,133.42,5.996]
[1718999307064,20.0,133.5,133.41,0.17]
[1718999307363,20.0,133.5,133.42,5.996]
[1718999308661,21.8115,133.51,133.42,5.996]
[1718999308975,21.8115,133.51,133.45,5.9945]
[1718999309269,2.49765865,133.5,133.45,5.9946]
[1718999309649,2.49765865,133.5,133.47,5.9937]
[1718999309849,2.49765865,133.5,133.46,0.17]
[1718999310565,2.49765865,133.5,133.44,5.9951]
[1718999312287,2.49765865,133.5,133.43,0.34]
[1718999312288,2.49765865,133.5,133.45,5.9947]
[1718999312455,2.49765865,133.5,133.45,0.17]
[1718999313783,2.49765865,133.5,133.45,6.1646]
[1718999315279,2.49765865,133.5,133.44,5.995]
[1718999315484,2.49765865,133.5,133.42,5.9958]
[1718999315657,2.49765865,133.5,133.41,5.9963]
[1718999315875,2.49765865,133.5,133.42,5.9958]
[1718999316074,2.49765865,133.5,133.41,5.9964]
[1718999316268,2.49765865,133.5,133.4,5.9968]
[1718999316464,22.49765865,133.5,133.4,5.9968]
[1718999317651,40.75431469,133.5,133.4,5.9968]
[1718999318953,21.1677,133.49,133.39,5.9972]
[1718999319155,0.17,133.48,133.39,5.9972]
[1718999319355,2.49765865,133.47,133.39,5.9972]
[1718999319850,2.49765865,133.47,133.4,5.9968]
[1718999320271,2.49765865,133.47,133.39,5.9973]
[1718999321369,23.2892,133.46,133.33,43.3695]
[1718999321565,2.49765865,133.45,133.37,5.9982]
[1718999321870,2.49765865,133.45,133.36,5.9987]
[1718999322069,2.49765865,133.45,133.33,43.3695]
[1718999322272,6.404,133.44,133.33,43.3695]
[1718999322488,2.49765865,133.43,133.33,43.3695]
[1718999322694,2.49765865,133.43,133.35,5.999]
[1718999324487,2.49765865,133.43,133.36,5.9987]
[1718999325496,2.49765865,133.43,133.35,5.999]
[1718999325674,2.49765865,133.43,133.34,0.34]
[1718999326177,2.49765865,133.43,133.34,6.3396]
[1718999326378,2.49765865,133.43,133.35,5.999]
[1718999327593,2.49765865,133.43,133.34,6.3395]
[1718999333196,15.9984,133.42,133.34,0.34]
[1718999333397,2.49765865,133.41,133.33,0.34]
[1718999335606,2.49765865,133.41,133.33,6.3401]
[1718999336917,2.49765865,133.41,133.33,0.34]
[1718999337409,2.49765865,133.41,133.33,6.3399]
[1718999338593,2.49765865,133.41,133.34,5.9994]
[1718999338904,2.49765865,133.41,133.35,0.34]
[1718999339107,2.49765865,133.41,133.35,6.3391]
[1718999339698,2.49765865,133.41,133.35,0.34]
[1718999340311,6.1288,133.4,133.31,0.8646059]
[1718999341217,15.975,133.39,133.31,0.8646059]
[1718999341583,6.4532,133.38,133.31,0.8646059]
[1718999341804,102.49765865,133.41,133.31,0.8646059]
[1718999341805,6.4532,133.35,133.31,0.8646059]
[1718999342013,2.49765865,133.34,133.31,0.8646059]
[1718999342387,22.49765865,133.34,133.31,0.8646059]
[1718999343204,22.49765865,133.34,133.23,6.0045]
[1718999343396,22.49765865,133.34,133.21,6.0052]
[1718999343397,6.3706,133.32,133.21,6.0052]
[1718999344217,6.3706,133.32,133.23,6.0043]
[1718999345213,6.3706,133.32,133.24,6.004]
[1718999345214,2.49765865,133.31,133.24,6.004]
[1718999345417,2.49765865,133.31,133.23,6.0045]
[1718999345586,2.49765865,133.31,133.22,6.0049]
[1718999345793,2.49765865,133.31,133.23,6.0045]
[1718999346008,22.4149,133.3,133.18,0.8646059]
[1718999346308,0.17,133.29,133.18,0.8646059]
[1718999346526,2.49765865,133.28,133.18,0.8646059]
[1718999346892,2.49765865,133.28,133.19,6.0062]
[1718999347290,2.49765865,133.28,133.18,0.8646059]
[1718999347495,2.49765865,133.28,133.18,6.8712059]
[1718999347703,22.4149,133.27,133.18,0.8646059]
[1718999347992,2.66765865,133.26,133.18,0.8646059]
[1718999348191,2.49765865,133.25,133.18,0.8646059]
[1718999348409,2.49765865,133.25,133.18,6.8714059]
[1718999348609,2.49765865,133.25,133.18,0.8646059]
[1718999349191,6.3951,133.24,133.18,0.8646059]
[1718999350117,6.3951,133.24,133.18,6.8714059]
[1718999350417,6.3951,133.24,133.18,6.8711059]
[1718999350616,2.49765865,133.23,133.18,6.8711059]
[1718999350796,2.49765865,133.23,133.18,0.8646059]
[1718999350997,2.49765865,133.23,133.2,6.0057]
[1718999351221,2.49765865,133.23,133.19,6.1763]
[1718999351514,2.49765865,133.23,133.2,6.0059]